lending/lending_fUSD_20250831
["ID","MTS","AMOUNT","RATE_DAILY","PERIOD"]
[382398136,1756600242433,-168.0,0.00037572,2]
[382398137,1756600242442,-4249.30745541,0.0003759,2]
[382398138,1756600242452,-15205.7732714,0.00037652,2]
[382398139,1756600242462,-4355.2166051,0.00037686,2]
[382398140,1756600242472,-2230.36378,0.00037688,30]
[382398141,1756600242482,-247.81819,0.00037688,7]
[382398142,1756600242491,-234.98,0.0003778,2]
[382398143,1756600242502,-198.13288449,0.0003788,2]
[382398144,1756600242511,-2230.36378,0.00037888,30]
[382398145,1756600242521,-247.81819,0.00037888,7]
[382398146,1756600242530,-22599.41,0.000379,14]
[382398147,1756600242540,-151.0,0.00037968,30]
[382398148,1756600242549,-151.0,0.00037968,30]
[382398149,1756600242559,-151.0,0.00037968,30]
[382398150,1756600242569,-151.0,0.00037968,30]
[382398151,1756600242578,-151.0,0.00037968,30]
[382398152,1756600242588,-151.0,0.00037968,30]
[382398153,1756600242597,-151.0,0.00037968,30]
[382398154,1756600242606,-151.0,0.00037968,30]
[382398155,1756600242616,-151.0,0.00037968,10]
[382398156,1756600242625,-151.0,0.00037968,30]
[382398157,1756600242640,-151.0,0.00037968,30]
[382398158,1756600242649,-151.0,0.00037968,30]
[382398159,1756600242659,-151.0,0.00037968,30]
[382398160,1756600242669,-151.0,0.00037968,30]
[382398161,1756600242679,-151.0,0.00037968,30]
[382398162,1756600242688,-151.0,0.00037968,30]
[382398163,1756600242697,-151.0,0.00037968,30]
[382398164,1756600242707,-151.0,0.00037968,30]
[382398165,1756600242717,-151.0,0.00037968,30]
[382398166,1756600242726,-216.414728,0.00037968,30]
[382398167,1756600242735,-151.0,0.00037968,30]
[382398168,1756600242745,-160.068743,0.00037968,30]
[382398169,1756600242755,-160.068743,0.00037968,30]
[382398170,1756600242765,-160.068743,0.00037968,30]
[382398171,1756600242774,-160.068743,0.00037968,30]
[382398172,1756600242784,-258.686639,0.00037968,30]
[382398173,1756600242793,-151.0,0.00037968,30]
[382398174,1756600242803,-170602.9627,0.00037988,2]
[382398175,1756600242812,-151.0,0.00037988,30]
[382398176,1756600242821,-151.0,0.00037988,30]
[382398177,1756600242831,-151.0,0.00037988,10]
[382398178,1756600242840,-151.0,0.00037988,30]
[382398179,1756600242850,-151.0,0.00037988,30]
[382398180,1756600242859,-151.0,0.00037988,30]
[382398181,1756600242868,-271.098948,0.00037988,30]
[382398182,1756600242878,-151.0,0.00037988,30]
[382398183,1756600242887,-151.0,0.00037988,30]
[382398184,1756600242897,-151.0,0.00037988,30]
[382398185,1756600242906,-170.393238,0.00037988,30]
[382398186,1756600242915,-160.068743,0.00037988,30]
[382398187,1756600242925,-160.068743,0.00037988,30]
[382398188,1756600242935,-160.068743,0.00037988,30]
[382398189,1756600242944,-160.068743,0.00037988,30]
[382398190,1756600242954,-221.607078,0.00037988,30]
[382398191,1756600242964,-174.797372,0.00037988,30]
[382398192,1756600242973,-174.797372,0.00037988,30]
[382398193,1756600242984,-174.797372,0.00037988,30]
[382398194,1756600242993,-174.797378,0.00037988,30]
[382398195,1756600243003,-152.0,0.00038,30]
[382398196,1756600243013,-230.0,0.00038,30]
[382398197,1756600243022,-154.0,0.00038,120]
[382398198,1756600243031,-4000.0,0.00038041,4]
[382398199,1756600243041,-218.72984148,0.0003807,30]
[382398200,1756600243050,-2230.36378,0.00038088,30]
[382398201,1756600243059,-247.81819,0.00038088,7]
[382398202,1756600243068,-7000.0,0.000381,2]
[382398203,1756600243079,-1049.46284289,0.00038208,6]
[382398204,1756600243088,-457.08331318,0.00038213,6]
[382398205,1756600243098,-2230.36378,0.00038288,30]
[382398206,1756600243107,-247.81819,0.00038288,7]
[382398207,1756600243116,-1000.0,0.000384,2]
[382398208,1756600243126,-1000.0,0.000384,7]
[382398209,1756600243135,-2230.36378,0.00038488,30]
[382398210,1756600243145,-247.81819,0.00038488,7]
[382398211,1756600243154,-590.0,0.0003857,2]
[382398212,1756600243164,-230.0,0.0003863,90]
[382398213,1756600243173,-13466.74550457,0.00038651,2]
[382398214,1756600243183,-151.0,0.00038667,30]
[382398215,1756600243192,-151.0,0.00038667,30]
[382398216,1756600243201,-151.0,0.00038667,30]
[382398217,1756600243211,-151.0,0.00038667,30]
[382398218,1756600243220,-151.0,0.00038667,30]
[382398219,1756600243229,-151.0,0.00038667,30]
[382398220,1756600243239,-151.0,0.00038667,30]
[382398221,1756600243248,-386.87667747,0.00038667,2]
[382398222,1756600243258,-332.60791905,0.00038667,2]
[382398223,1756600243267,-2230.36378,0.00038688,30]
[382398224,1756600243277,-247.81819,0.00038688,7]
[382398225,1756600243286,-1091.30317838,0.00038689,5]
[382398226,1756600243302,-23857.16556991,0.0003876,2]
[382398227,1756600243311,-151.0,0.00038793,30]
[382398228,1756600243321,-151.0,0.00038793,30]
[382398229,1756600243338,-151.0,0.00038793,30]
[382398230,1756600243353,-151.0,0.00038793,30]
[382398231,1756600243363,-151.0,0.00038793,30]
[382398232,1756600243373,-22599.41,0.000388,14]
[382398233,1756600243383,-168.0,0.00038883,2]
[382398235,1756600243393,-247.81819,0.00038888,7]
[382398237,1756600243403,-3531.0,0.00038917,5]
[382398239,1756600243413,-94403.71435558,0.00039,2]
[382398242,1756600243431,-150.0,0.00039081,120]
[382398243,1756600243441,-205.68321373,0.00039088,2]
[382398245,1756600243451,-2230.36378,0.00039088,30]
[382398247,1756600243462,-247.81819,0.00039088,7]
[382398248,1756600243472,-1000.0,0.000391,7]
[382398249,1756600243483,-7000.0,0.000391,2]
[382398250,1756600243493,-311.54150077,0.0003913,15]
[382398251,1756600243504,-1000.0,0.000392,7]
[382398252,1756600243516,-154.17871733,0.000392,12]
[382398253,1756600243525,-2230.36378,0.00039288,30]
[382398254,1756600243535,-247.81819,0.00039288,7]
[382398255,1756600243544,-2230.36378,0.00039488,30]
[382398256,1756600243553,-247.81819,0.00039488,7]
[382398257,1756600243564,-234.98,0.00039498,2]
[382398258,1756600243574,-1000.0,0.000395,7]
[382398259,1756600243583,-5000.0,0.00039603,2]
[382398260,1756600243593,-2230.36378,0.00039688,30]
[382398261,1756600243603,-247.81819,0.00039688,7]
[382398262,1756600243614,-1000.0,0.000397,7]
[382398263,1756600243624,-740.03,0.000397,14]
[382398264,1756600243642,-152.0,0.00039743,3]
[382398265,1756600243651,-578.0,0.0003975,2]
[382398266,1756600243660,-999.0,0.00039754,120]
[382398267,1756600243670,-150.0,0.00039799,3]
[382398268,1756600243680,-22599.41,0.000398,14]
[382398269,1756600243690,-209.74306728,0.00039821,2]
[382398270,1756600243699,-2230.36378,0.00039888,30]
[382398271,1756600243709,-247.81819,0.00039888,7]
[382398272,1756600243718,-151.0,0.00039896,30]
[382398273,1756600243728,-151.0,0.00039896,30]
[382398274,1756600243737,-151.0,0.00039896,30]
[382398275,1756600243747,-151.0,0.00039896,30]
[382398276,1756600243757,-151.0,0.00039896,30]
[382398277,1756600243766,-151.0,0.00039896,30]
[382398278,1756600243776,-151.0,0.00039896,30]
[382398279,1756600243786,-151.0,0.00039896,30]
[382398280,1756600243795,-151.49902,0.00039896,30]
[382398281,1756600243805,-151.0,0.00039896,30]
[382398282,1756600243814,-151.0,0.00039896,30]
[382398283,1756600243824,-151.0,0.00039896,30]
[382398284,1756600243833,-151.0,0.00039896,30]
[382398285,1756600243842,-198.238885,0.00039896,30]
[382398286,1756600243851,-151.0,0.00039896,30]
[382398287,1756600243861,-151.0,0.00039896,30]
[382398288,1756600243870,-597.17301134,0.0004,2]
[382398289,1756600243879,-383.35470335,0.0004,2]
[382398290,1756600243888,-33661.73442503,0.0004,30]
[382398291,1756600243898,-214.85453407,0.0004,2]
[382398292,1756600243908,-499.91473786,0.0004,120]
[382398293,1756600243918,-401.19111454,0.00040036,2]
[382398294,1756600243928,-344.91441206,0.00040036,2]
[382398295,1756600243938,-2230.36378,0.00040088,30]
[382398296,1756600243948,-160.068743,0.0004009,30]
[382398297,1756600243958,-160.068743,0.0004009,30]
[382398298,1756600243968,-160.068743,0.0004009,30]
[382398299,1756600243977,-160.068739,0.0004009,30]
[382398300,1756600243986,-7000.0,0.000401,2]
[382398301,1756600243995,-151.0,0.00040121,30]
[382398302,1756600244005,-151.0,0.00040121,30]
[382398303,1756600244014,-151.0,0.00040121,30]
[382398304,1756600244024,-151.0,0.00040121,30]
[382398305,1756600244034,-151.0,0.00040121,30]
[382398306,1756600244043,-151.0,0.00040121,30]
[382398307,1756600244053,-27271.0,0.00040155,10]
[382398308,1756600244064,-151.0,0.00040173,2]
[382398309,1756600244075,-151.0,0.00040173,30]
[382398310,1756600244084,-151.0,0.00040173,30]
[382398311,1756600244095,-151.0,0.00040173,30]
[382398312,1756600244105,-151.0,0.00040173,30]
[382398313,1756600244115,-151.0,0.00040173,30]
[382398314,1756600244125,-151.0,0.00040173,30]
[382398315,1756600244135,-151.393875,0.00040173,10]
[382398316,1756600244144,-151.0,0.00040173,30]
[382398317,1756600244154,-151.0,0.00040173,30]
[382398318,1756600244163,-151.0,0.00040173,30]
[382398319,1756600244173,-151.0,0.00040173,30]
[382398320,1756600244183,-151.0,0.00040173,30]
[382398321,1756600244192,-151.0,0.00040173,30]
[382398322,1756600244201,-151.0,0.00040173,30]
[382398323,1756600244210,-151.0,0.00040173,30]
[382398324,1756600244219,-151.0,0.00040173,30]
[382398325,1756600244229,-241.29304,0.00040173,30]
[382398326,1756600244238,-151.0,0.00040173,30]
[382398327,1756600244248,-151.0,0.00040173,30]
[382398328,1756600244257,-151.0,0.00040173,30]
[382398329,1756600244266,-151.0,0.00040173,30]
[382398330,1756600244275,-271.029886,0.00040173,30]
[382398331,1756600244284,-151.0,0.00040173,30]
[382398332,1756600244295,-151.0,0.00040173,30]
[382398333,1756600244304,-173.651185,0.00040173,30]
[382398334,1756600244313,-151.0,0.00040173,30]
[382398335,1756600244323,-151.0,0.00040173,30]
[382398336,1756600244332,-151.0,0.00040173,30]
[382398337,1756600244341,-151.0,0.00040173,30]
[382398338,1756600244351,-1029.4317058,0.00040193,30]
[382398339,1756600244360,-151.0,0.000402,30]
[382398340,1756600244370,-151.0,0.000402,30]
[382398341,1756600244379,-151.0,0.000402,30]
[382398342,1756600244389,-151.0,0.000402,30]
[382398343,1756600244399,-151.0,0.000402,30]
[382398344,1756600244408,-151.0,0.000402,30]
[382398345,1756600244419,-151.0,0.000402,30]
[382398346,1756600244428,-151.0,0.000402,30]
[382398347,1756600244438,-151.0,0.000402,30]
[382398348,1756600244448,-151.0,0.000402,30]
[382398349,1756600244458,-1000.0,0.00040202,2]
[382398350,1756600244467,-152.0,0.00040274,90]
[382398351,1756600244477,-230.0,0.00040274,90]
[382398352,1756600244486,-2230.36378,0.00040288,30]
[382398353,1756600244496,-1000.0,0.000403,7]
[382398354,1756600244506,-162.79523237,0.000403,120]
[382398355,1756600244517,-162.79523231,0.000403,120]
[382398356,1756600244526,-162.79523231,0.000403,120]
[382398357,1756600244536,-162.79523231,0.000403,120]
[382398358,1756600244546,-162.79523231,0.000403,120]
[382398359,1756600244556,-162.79523231,0.000403,120]
[382398360,1756600244566,-162.79523231,0.000403,120]
[382398361,1756600244576,-162.79523231,0.000403,120]
[382398362,1756600244585,-162.79523231,0.000403,120]
[382398363,1756600244595,-2230.36378,0.00040488,30]
[382398364,1756600244604,-1035.85,0.00040576,120]
[382398365,1756600244613,-1023.25,0.00040587,2]
[382398366,1756600244623,-2230.36378,0.00040688,30]
[382398367,1756600244637,-906.0,0.000407,30]
[382398368,1756600244647,-974.0,0.000407,30]
[382398369,1756600244657,-1086.0,0.00040725,5]
[382398370,1756600244667,-311.54150077,0.00040758,15]
[382398371,1756600244679,-641.54094162,0.00040867,2]
[382398372,1756600244689,-2230.36378,0.00040888,30]
[382398373,1756600244699,-565.0,0.0004093,2]
[382398374,1756600244711,-151.0,0.00040979,30]
[382398375,1756600244722,-151.0,0.00040979,30]
[382398376,1756600244733,-151.0,0.00040979,30]
[382398377,1756600244742,-298.174644,0.00040979,30]
[382398378,1756600244792,-160.0,0.00041,90]
[382398379,1756600244802,-1000.0,0.00041,7]
[382398380,1756600244814,-151.0,0.00041027,30]
[382398381,1756600244825,-151.0,0.00041027,30]
[382398382,1756600244836,-151.0,0.00041027,30]
[382398383,1756600244846,-2230.36378,0.00041088,30]
[382398384,1756600244856,-500.0,0.00041095,120]
[382398385,1756600244866,-500.0,0.00041095,120]
[382398386,1756600244877,-500.0,0.00041095,120]
[382398387,1756600244888,-500.0,0.00041095,120]
[382398388,1756600244899,-500.0,0.00041095,120]
[382398389,1756600244910,-500.0,0.00041095,120]
[382398390,1756600244921,-500.0,0.00041095,120]
[382398391,1756600244930,-500.0,0.00041095,120]
[382398392,1756600244940,-500.0,0.00041095,120]
[382398393,1756600244950,-500.0,0.00041095,120]
[382398394,1756600244959,-500.0,0.00041095,120]
[382398395,1756600244970,-500.0,0.00041095,120]
[382398396,1756600244979,-500.0,0.00041095,120]
[382398397,1756600244988,-500.0,0.00041095,120]
[382398398,1756600244997,-500.0,0.00041095,120]
[382398399,1756600245006,-500.0,0.00041095,120]
[382398400,1756600245016,-500.0,0.00041095,120]
[382398401,1756600245027,-500.0,0.00041095,120]
[382398402,1756600245036,-463.39309844,0.00041095,120]
[382398403,1756600245046,-534.65332517,0.00041096,8]
[382398404,1756600245059,-197.67,0.00041096,2]
[382398405,1756600245070,-161.75,0.00041096,2]
[382398406,1756600245081,-151.0,0.00041096,120]
[382398407,1756600245091,-200.0,0.00041096,20]
[382398408,1756600245100,-472.0,0.000411,2]
[382398409,1756600245109,-591.71879127,0.000411,2]
[382398410,1756600245118,-1425.0,0.00041166,2]
[382398411,1756600245128,-234.98,0.00041215,2]
[382398412,1756600245138,-1425.0,0.00041262,2]
[382398413,1756600245148,-1425.0,0.00041267,2]
[382398414,1756600245158,-2230.36378,0.00041288,30]
[382398415,1756600245170,-740.03,0.000413,14]
[382398416,1756600245180,-17100.21351315,0.00041388,10]
[382398417,1756600245190,-1425.0,0.00041392,2]
[382398418,1756600245201,-151.0,0.00041392,120]
[382398419,1756600245210,-151.0,0.00041392,120]
[382398420,1756600245219,-151.0,0.00041392,120]
[382398421,1756600245229,-151.0,0.00041392,120]
[382398422,1756600245240,-151.0,0.00041392,120]
[382398423,1756600245251,-151.0,0.00041392,120]
[382398424,1756600245261,-151.0,0.00041392,120]
[382398425,1756600245270,-228.247384,0.00041392,120]
[382398426,1756600245280,-151.0,0.00041392,90]
[382398427,1756600245290,-151.0,0.00041392,120]
[382398428,1756600245301,-151.0,0.00041392,120]
[382398429,1756600245310,-151.0,0.00041392,120]
[382398430,1756600245321,-162.88,0.00041399,2]
[382398431,1756600245332,-416.03518578,0.00041405,2]
[382398432,1756600245341,-357.6762453,0.00041405,2]
[382398433,1756600245350,-2230.36378,0.00041488,30]
[382398434,1756600245359,-15205.7732714,0.00041523,2]
[382398435,1756600245369,-1425.0,0.00041542,2]
[382398436,1756600245379,-151.0,0.00041565,120]
[382398437,1756600245389,-151.0,0.00041565,30]
[382398438,1756600245398,-151.0,0.00041565,30]
[382398439,1756600245407,-151.0,0.00041565,120]
[382398440,1756600245417,-151.0,0.00041565,120]
[382398441,1756600245426,-469.67,0.00041565,30]
[382398442,1756600245435,-469.67,0.00041565,30]
[382398443,1756600245444,-469.67,0.00041565,30]
[382398444,1756600245454,-469.67,0.00041565,30]
[382398445,1756600245463,-469.67,0.00041565,30]
[382398446,1756600245472,-469.67,0.00041565,30]
[382398447,1756600245481,-469.67,0.00041565,30]
[382398448,1756600245491,-469.67,0.00041565,30]
[382398449,1756600245500,-938.89,0.00041565,30]
[382398450,1756600245509,-4355.2166051,0.00041574,2]
[382398451,1756600245518,-1425.0,0.00041578,2]
[382398452,1756600245528,-255.50097301,0.00041594,7]
[382398453,1756600245538,-1000.0,0.000416,7]
[382398454,1756600245548,-13466.74550457,0.00041604,15]
[382398455,1756600245558,-2230.36378,0.00041688,30]
[382398456,1756600245568,-666.0,0.00041751,30]
[382398457,1756600245577,-402.44710717,0.00041868,30]
[382398458,1756600245587,-2230.36378,0.00041888,30]
[382398459,1756600245596,-567.0,0.00041889,2]
[382398460,1756600245606,-1326.468,0.00041889,2]
[382398461,1756600245616,-1575.0,0.00041889,2]
[382398462,1756600245629,-600.0,0.00041889,2]
[382398463,1756600245639,-1174.0,0.00041889,2]
[382398464,1756600245649,-895.0,0.00041889,2]
[382398466,1756600245659,-4158.0,0.00041889,2]
[382398467,1756600245669,-3377.0,0.00041889,2]
[382398468,1756600245679,-6150.0,0.00041889,2]
[382398469,1756600245689,-2033.0,0.00041889,2]
[382398470,1756600245700,-718.0,0.00041889,2]
[382398471,1756600245710,-151.0,0.00041889,2]
[382398472,1756600245721,-151.0,0.00041889,120]
[382398473,1756600245731,-151.650697,0.00041889,120]
[382398474,1756600245740,-151.0,0.00041889,120]
[382398475,1756600245752,-239.94437,0.00041889,120]
[382398476,1756600245762,-152.769431,0.00041889,120]
[382398477,1756600245799,-151.0,0.00041889,120]
[382398478,1756600245809,-151.0,0.00041889,120]
[382398479,1756600245819,-151.0,0.00041889,120]
[382398480,1756600245828,-151.0,0.00041889,120]
[382398481,1756600245838,-151.0,0.00041889,120]
[382398482,1756600245847,-151.0,0.00041889,120]
[382398483,1756600245857,-151.0,0.00041889,120]
[382398484,1756600245866,-151.0,0.00041889,120]
[382398485,1756600245875,-151.0,0.00041889,120]
[382398486,1756600245884,-151.0,0.00041889,120]
[382398487,1756600245893,-151.0,0.00041889,120]
[382398488,1756600245902,-151.0,0.00041889,120]
[382398489,1756600245911,-151.0,0.00041889,120]
[382398490,1756600245920,-291.183076,0.00041889,120]
[382398491,1756600245929,-275.337471,0.00041889,120]
[382398493,1756600245938,-151.0,0.00041889,120]
[382398495,1756600245947,-151.0,0.00041889,120]
[382398496,1756600245956,-151.0,0.00041889,120]
[382398497,1756600245965,-151.0,0.00041889,120]
[382398498,1756600245975,-151.0,0.00041889,120]
[382398499,1756600245984,-151.0,0.00041889,120]
[382398500,1756600245993,-156.810764,0.00041889,120]
[382398501,1756600246002,-151.0,0.00041889,120]
[382398502,1756600246011,-257.176852,0.00041889,120]
[382398503,1756600246020,-151.0,0.00041889,120]
[382398504,1756600246029,-151.0,0.00041889,120]
[382398505,1756600246038,-151.0,0.00041889,120]
[382398506,1756600246047,-151.0,0.00041889,120]
[382398507,1756600246057,-300.0,0.00041976,30]
[382398508,1756600246066,-408.97,0.00041976,30]
[382398509,1756600246075,-150.0,0.00041976,30]
[382398510,1756600246085,-173.95,0.00041976,30]
[382398511,1756600246093,-150.0,0.00041976,30]
[382398512,1756600246103,-645.98,0.00041976,30]
[382398513,1756600246112,-166.26,0.00041976,30]
[382398514,1756600246123,-166.26,0.00041976,30]
[382398515,1756600246133,-173.95,0.00041976,30]
[382398516,1756600246142,-150.0,0.00041976,30]
[382398517,1756600246153,-408.97,0.00041976,30]
[382398518,1756600246163,-150.0,0.00041976,30]
[382398519,1756600246173,-166.26,0.00041976,30]
[382398520,1756600246183,-150.0,0.00041976,30]
[382398521,1756600246192,-173.95,0.00041976,30]
[382398522,1756600246203,-408.97,0.00041976,30]
[382398523,1756600246214,-150.0,0.00041976,30]
[382398524,1756600246225,-150.0,0.00041976,30]
[382398525,1756600246236,-408.97,0.00041976,30]
[382398526,1756600246247,-166.26,0.00041976,30]
[382398527,1756600246257,-173.95,0.00041976,30]
[382398528,1756600246267,-173.95,0.00041976,30]
[382398529,1756600246278,-150.0,0.00041976,30]
[382398530,1756600246287,-166.26,0.00041976,30]
[382398531,1756600246297,-408.97,0.00041976,30]
[382398532,1756600246307,-408.97,0.00041976,30]
[382398533,1756600246316,-173.95,0.00041976,30]
[382398534,1756600246327,-166.26,0.00041976,30]
[382398535,1756600246336,-173.95,0.00041976,30]
[382398536,1756600246346,-166.26,0.00041976,30]
[382398537,1756600246355,-408.97,0.00041976,30]
[382398538,1756600246365,-166.26,0.00041976,30]
[382398539,1756600246375,-408.97,0.00041976,30]
[382398540,1756600246385,-173.95,0.00041976,30]
[382398541,1756600246395,-173.95,0.00041976,30]
[382398542,1756600246405,-166.26,0.00041976,30]
[382398543,1756600246415,-408.97,0.00041976,30]
[382398544,1756600246424,-173.95,0.00041976,30]
[382398545,1756600246434,-166.26,0.00041976,30]
[382398546,1756600246443,-408.97,0.00041976,30]
[382398547,1756600246453,-166.26,0.00041976,30]
[382398548,1756600246463,-408.97,0.00041976,30]
[382398549,1756600246473,-173.95,0.00041976,30]
[382398550,1756600246483,-339.44,0.00041976,30]
[382398551,1756600246493,-408.97,0.00041976,30]
[382398552,1756600246502,-408.97,0.00041976,30]
[382398553,1756600246512,-408.97,0.00041976,30]
[382398554,1756600246521,-342.27,0.00041976,30]
[382398555,1756600246530,-159.51147212,0.0004198,28]
[382398556,1756600246540,-1602.59810038,0.00042,120]
[382398557,1756600246549,-1199.41634961,0.00042076,2]
[382398558,1756600246559,-154.17871733,0.000421,16]
[382398559,1756600246568,-553.0,0.0004212,2]
[382398561,1756600246577,-232.0,0.00042288,90]
[382398563,1756600246587,-22599.41,0.000423,14]
[382398564,1756600246596,-1425.0,0.00042317,2]
[382398565,1756600246608,-1425.0,0.00042369,2]
[382398566,1756600246617,-311.54150077,0.00042387,15]
[382398567,1756600246628,-1083.96302241,0.00042428,120]
[382398568,1756600246638,-150.0,0.00042445,120]
[382398569,1756600246647,-153.0,0.00042466,60]
[382398570,1756600246656,-153.0,0.00042466,60]
[382398571,1756600246665,-153.0,0.00042466,60]
[382398572,1756600246675,-153.0,0.00042466,60]
[382398573,1756600246685,-153.0,0.00042466,60]
[382398574,1756600246694,-153.0,0.00042466,60]
[382398575,1756600246706,-153.0,0.00042466,60]
[382398576,1756600246716,-153.0,0.00042466,60]
[382398577,1756600246726,-153.0,0.00042466,60]
[382398578,1756600246737,-153.0,0.00042466,60]
[382398579,1756600246748,-153.0,0.00042466,60]
[382398580,1756600246758,-153.0,0.00042466,60]
[382398581,1756600246768,-153.0,0.00042466,60]
[382398582,1756600246777,-153.0,0.00042466,60]
[382398583,1756600246786,-153.0,0.00042466,60]
[382398584,1756600246799,-153.0,0.00042466,60]
[382398585,1756600246809,-153.0,0.00042466,60]
[382398586,1756600246820,-153.0,0.00042466,60]
[382398587,1756600246829,-153.0,0.00042466,60]
[382398588,1756600246838,-153.0,0.00042466,60]
[382398589,1756600246847,-153.0,0.00042466,60]
[382398590,1756600246857,-153.0,0.00042466,60]
[382398591,1756600246867,-153.0,0.00042466,60]
[382398592,1756600246878,-153.0,0.00042466,60]
[382398593,1756600246887,-153.0,0.00042466,60]
[382398594,1756600246899,-153.0,0.00042466,60]
[382398595,1756600246910,-153.0,0.00042466,60]
[382398596,1756600246919,-153.0,0.00042466,60]
[382398597,1756600246929,-153.0,0.00042466,60]
[382398598,1756600246939,-153.0,0.00042466,60]
[382398599,1756600246948,-153.0,0.00042466,60]
[382398600,1756600246958,-153.0,0.00042466,60]
[382398601,1756600246967,-153.0,0.00042466,60]
[382398602,1756600246976,-153.0,0.00042466,60]
[382398603,1756600246986,-153.0,0.00042466,60]
[382398604,1756600246996,-153.0,0.00042466,60]
[382398605,1756600247006,-153.0,0.00042466,60]
[382398606,1756600247016,-153.0,0.00042466,60]
[382398607,1756600247025,-153.0,0.00042466,60]
[382398608,1756600247034,-153.0,0.00042466,60]
[382398609,1756600247043,-153.0,0.00042466,60]
[382398610,1756600247053,-153.0,0.00042466,60]
[382398611,1756600247062,-153.0,0.00042466,60]
[382398612,1756600247071,-153.0,0.00042466,60]
[382398613,1756600247080,-153.0,0.00042466,60]
[382398614,1756600247090,-153.0,0.00042466,60]
[382398615,1756600247099,-153.0,0.00042466,60]
[382398616,1756600247109,-153.0,0.00042466,60]
[382398617,1756600247118,-153.0,0.00042466,60]
[382398618,1756600247128,-153.0,0.00042466,60]
[382398619,1756600247138,-153.0,0.00042466,60]
[382398620,1756600247147,-153.0,0.00042466,60]
[382398621,1756600247157,-153.0,0.00042466,60]
[382398622,1756600247168,-153.0,0.00042466,60]
[382398623,1756600247178,-153.0,0.00042466,60]
[382398624,1756600247192,-153.0,0.00042466,60]
[382398625,1756600247202,-153.0,0.00042466,60]
[382398626,1756600247211,-153.0,0.00042466,60]
[382398627,1756600247220,-153.0,0.00042466,60]
[382398628,1756600247230,-153.0,0.00042466,60]
[382398629,1756600247239,-153.0,0.00042466,60]
[382398630,1756600247249,-153.0,0.00042466,60]
[382398631,1756600247258,-153.0,0.00042466,60]
[382398632,1756600247269,-153.0,0.00042466,60]
[382398633,1756600247278,-153.0,0.00042466,60]
[382398634,1756600247288,-153.0,0.00042466,60]
[382398635,1756600247298,-153.0,0.00042466,60]
[382398636,1756600247308,-153.0,0.00042466,60]
[382398637,1756600247317,-153.0,0.00042466,60]
[382398638,1756600247326,-153.0,0.00042466,60]
[382398639,1756600247336,-153.0,0.00042466,60]
[382398640,1756600247345,-153.0,0.00042466,60]
[382398641,1756600247355,-153.0,0.00042466,60]
[382398642,1756600247365,-153.0,0.00042466,60]
[382398643,1756600247374,-153.0,0.00042466,60]
[382398644,1756600247384,-153.0,0.00042466,60]
[382398645,1756600247394,-153.0,0.00042466,60]
[382398646,1756600247403,-153.0,0.00042466,60]
[382398647,1756600247413,-153.0,0.00042466,60]